{"text_format":"3","workbook":"xlsx","n_sheets":6,"sheets":["บันทึกการโทรขาย","ข้อมูลติดต่อของลูกค้า","ก่อนที่จะติดต่อ","การโทรครั้งแรก","ข้อมูลการขาย","การติดตาม"],"not_rendered":{"defined_names":14},"read":"whole","date_system":"1900"}

{"sheet":"บันทึกการโทรขาย","index":0,"n_rows":13,"n_cols":7,"rows_kept":13}
[null," ชื่อบริษัท"]
[null,"บันทึกการโทรขาย"]
[null,"โทร #","ลูกค้า","บริษัท","วันที่","เวลา","หมายเหตุ"]
[null,1,"Jeff Smith",{"$f":"IF(บันทึกการโทรขาย[[#This Row],[ลูกค้า]]=\"\",\"\",IFERROR(VLOOKUP(บันทึกการโทรขาย[[#This Row],[ลูกค้า]],ข้อมูลติดต่อของลูกค้า[],2,0),\"Not Found\"))","v":"Proseware, Inc."},{"$f":"TODAY()-5","v":"2016-10-13"},"08:30:00"]
[null,2,"Radim Petratur",{"$f":"IF(บันทึกการโทรขาย[[#This Row],[ลูกค้า]]=\"\",\"\",IFERROR(VLOOKUP(บันทึกการโทรขาย[[#This Row],[ลูกค้า]],ข้อมูลติดต่อของลูกค้า[],2,0),\"Not Found\"))","v":"Litware, Inc."},{"$f":"TODAY()-5","v":"2016-10-13"},"09:00:00"]
[null,3,"Phyllis Harris",{"$f":"IF(บันทึกการโทรขาย[[#This Row],[ลูกค้า]]=\"\",\"\",IFERROR(VLOOKUP(บันทึกการโทรขาย[[#This Row],[ลูกค้า]],ข้อมูลติดต่อของลูกค้า[],2,0),\"Not Found\"))","v":"Northwind Traders"},"2016-10-13","09:30:00"]
[null,4,"Aaron Nicholls",{"$f":"IF(บันทึกการโทรขาย[[#This Row],[ลูกค้า]]=\"\",\"\",IFERROR(VLOOKUP(บันทึกการโทรขาย[[#This Row],[ลูกค้า]],ข้อมูลติดต่อของลูกค้า[],2,0),\"Not Found\"))","v":"Lucerne Publishing"},"2016-10-13","10:00:00"]
[null,5,"Brian Welcker",{"$f":"IF(บันทึกการโทรขาย[[#This Row],[ลูกค้า]]=\"\",\"\",IFERROR(VLOOKUP(บันทึกการโทรขาย[[#This Row],[ลูกค้า]],ข้อมูลติดต่อของลูกค้า[],2,0),\"Not Found\"))","v":"Margie's Travel"},"2016-10-13","10:30:00"]
[null,6,"Jeff Smith",{"$f":"IF(บันทึกการโทรขาย[[#This Row],[ลูกค้า]]=\"\",\"\",IFERROR(VLOOKUP(บันทึกการโทรขาย[[#This Row],[ลูกค้า]],ข้อมูลติดต่อของลูกค้า[],2,0),\"Not Found\"))","v":"Proseware, Inc."},{"$f":"TODAY()-3","v":"2016-10-15"},"11:00:00"]
[null,7,"Radim Petratur",{"$f":"IF(บันทึกการโทรขาย[[#This Row],[ลูกค้า]]=\"\",\"\",IFERROR(VLOOKUP(บันทึกการโทรขาย[[#This Row],[ลูกค้า]],ข้อมูลติดต่อของลูกค้า[],2,0),\"Not Found\"))","v":"Litware, Inc."},{"$f":"TODAY()-3","v":"2016-10-15"},"11:30:00"]
[null,8,"Jeff Smith",{"$f":"IF(บันทึกการโทรขาย[[#This Row],[ลูกค้า]]=\"\",\"\",IFERROR(VLOOKUP(บันทึกการโทรขาย[[#This Row],[ลูกค้า]],ข้อมูลติดต่อของลูกค้า[],2,0),\"Not Found\"))","v":"Proseware, Inc."},{"$f":"TODAY()-1","v":"2016-10-17"},"12:00:00"]
[null,9,"Brian Welcker",{"$f":"IF(บันทึกการโทรขาย[[#This Row],[ลูกค้า]]=\"\",\"\",IFERROR(VLOOKUP(บันทึกการโทรขาย[[#This Row],[ลูกค้า]],ข้อมูลติดต่อของลูกค้า[],2,0),\"Not Found\"))","v":"Margie's Travel"},{"$f":"TODAY()-1","v":"2016-10-17"},"12:30:00"]
[null,10,"Brian Welcker",{"$f":"IF(บันทึกการโทรขาย[[#This Row],[ลูกค้า]]=\"\",\"\",IFERROR(VLOOKUP(บันทึกการโทรขาย[[#This Row],[ลูกค้า]],ข้อมูลติดต่อของลูกค้า[],2,0),\"Not Found\"))","v":"Margie's Travel"},{"$f":"TODAY()","v":"2016-10-18"},"13:00:00"]

{"sheet":"ข้อมูลติดต่อของลูกค้า","index":1,"n_rows":8,"n_cols":8,"rows_kept":8}
[null,{"$f":"ชื่อบริษัท","v":" ชื่อบริษัท"}]
[null,"ข้อมูลติดต่อของลูกค้า"]
[null,"ชื่อลูกค้า","ชื่อบริษัท","ที่อยู่","เมือง รัฐ รหัสไปรษณีย์","โทรศัพท์หลัก","โทรศัพท์รอง","อีเมล"]
[null,"Radim Petratur","Litware, Inc.","100 Main St","Cherrytown, NH 123456","(541) 555-0135","(541) 555-0136","radim@litwareinc.com"]
[null,"Aaron Nicholls","Lucerne Publishing","567 Second Ave","Spaulding, NY 23456","(425) 555-0198","(425) 555-0199","aaron@lucernepublishing.com"]
[null,"Brian Welcker","Margie's Travel","987 Orange St","Mountain View, IL 34567","(888) 555-0125","(888) 555-0126","brian@margiestravel.com"]
[null,"Phyllis Harris","Northwind Traders","890 N 3rd Ave","Chatham, CA 45678","(541) 555-0175","(541) 555-0176","phyllis@northwindtraders.com"]
[null,"Jeff Smith","Proseware, Inc.","123 Major Dr","Shelbyville, MA 56789","(509) 555-0150","(509) 555-0151","jeff@proseware.com"]

{"sheet":"ก่อนที่จะติดต่อ","index":2,"n_rows":13,"n_cols":3,"rows_kept":13}
[null,{"$f":"ชื่อบริษัท","v":" ชื่อบริษัท"}]
[null,"รายการตรวจสอบการโทรขาย"]
[null,"กล่องกาเครื่องหมาย","ก่อนที่จะติดต่อ"]
[null,null,"ตรวจสอบประวัติของลูกค้า"]
[null,null,"ตรวจสอบประวัตินายจ้างของลูกค้า"]
[null,null,"ตรวจสอบความสำคัญและกลยุทธ์การขาย"]
[null,null,"เพิ่มรายการ"]
[null,null,"เพิ่มรายการ"]
[null,null,"เพิ่มรายการ"]
[null,null,"เพิ่มรายการ"]
[null,null,"เพิ่มรายการ"]
[null,null,"เพิ่มรายการ"]
[null,null,"เพิ่มรายการ"]

{"sheet":"การโทรครั้งแรก","index":3,"n_rows":13,"n_cols":3,"rows_kept":13}
[null,{"$f":"ชื่อบริษัท","v":" ชื่อบริษัท"}]
[null,"รายการตรวจสอบการโทรขาย"]
[null,"กล่องกาเครื่องหมาย","การโทรครั้งแรก"]
[null,null,"โทรโดยตรงไปยังบุคคลที่เหมาะสม"]
[null,null,"ล้างบทนำ"]
[null,null,"เพิ่มรายการ"]
[null,null,"เพิ่มรายการ"]
[null,null,"เพิ่มรายการ"]
[null,null,"เพิ่มรายการ"]
[null,null,"เพิ่มรายการ"]
[null,null,"เพิ่มรายการ"]
[null,null,"เพิ่มรายการ"]
[null,null,"เพิ่มรายการ"]

{"sheet":"ข้อมูลการขาย","index":4,"n_rows":13,"n_cols":3,"rows_kept":13}
[null,{"$f":"ชื่อบริษัท","v":" ชื่อบริษัท"}]
[null,"รายการตรวจสอบการโทรขาย"]
[null,"กล่องกาเครื่องหมาย","ข้อมูลการขาย"]
[null,null,"ล้างและบังคับใช้บทนำสำหรับผลิตภัณฑ์/บริการ"]
[null,null,"ครอบคลุมพื้นฐานทั้งหมด"]
[null,null,"กล่าวถึงการแสดงตนบนเว็บ (เช่น เว็บไซต์ เครือข่ายสังคม)"]
[null,null,"เพิ่มรายการ"]
[null,null,"เพิ่มรายการ"]
[null,null,"เพิ่มรายการ"]
[null,null,"เพิ่มรายการ"]
[null,null,"เพิ่มรายการ"]
[null,null,"เพิ่มรายการ"]
[null,null,"เพิ่มรายการ"]

{"sheet":"การติดตาม","index":5,"n_rows":13,"n_cols":3,"rows_kept":13}
[null,{"$f":"ชื่อบริษัท","v":" ชื่อบริษัท"}]
[null,"รายการตรวจสอบการโทรขาย"]
[null,"กล่องกาเครื่องหมาย","ติดตามข้อมูล"]
[null,null,"ข้อมูลติดต่อของลูกค้า"]
[null,null,"ข้อมูลส่วนบุคคลของลูกค้า"]
[null,null,"ความพึงพอใจของลูกค้า"]
[null,null,"จัดกำหนดการที่ติดต่อใหม่หรือไม่"]
[null,null,"ทำยอดขายได้หรือไม่"]
[null,null,"เพิ่มรายการ"]
[null,null,"เพิ่มรายการ"]
[null,null,"เพิ่มรายการ"]
[null,null,"เพิ่มรายการ"]
[null,null,"เพิ่มรายการ"]